{"text_format":"1","workbook":"xlsx","n_sheets":12,"sheets":["DanskText","Dansk - Information","Information","Translations","RadarPlotsENG","RadarPlotsENG2","English Report","Dansk Report","appData","Menus","DataSort","Questions"],"not_rendered":{"charts":0,"images":6,"macros":1,"external_links":0,"defined_names":2,"comments":0,"pivot_tables":0},"unopened":[],"bounds":{"document_bytes":16777216,"sheet_cells":100000,"rows_first":2000,"rows_last":500,"rows_between":2000,"halvings":0,"cell_chars":16384,"cell_head_chars":4096},"cells_cut":0,"cells_raw":0,"read":"whole","date_system":"1900"}

{"sheet":"DanskText","index":0,"n_rows":45,"n_cols":3,"rows_kept":45,"cut":false,"hidden":true,"merged":[]}
[0,"Welcome Page"]
["header1","ANALYSE AF SIKRING MED G4S SIKRINGSRADAR"]
["header2","G4S SikringsRadar anvender vi til at få overblik over den samlede sikringsløsning i en organisation. Når værktøjet bliver anvendt korrekt, forebygger SikringsRadaren risici og giver størst mulig output og værdi for organisationen."]
["header3","G4S SikringsRadar er baseret på modellen G4S TMT integrerede løsninger (TMT står for Taktisk, Menneskelig og Teknisk) og har samme struktur og indhold. TMT integrerede løsninger giver forståelse for sammenhængen mellem sikringsløsninger, og G4S SikringsRadar giver overblik over omfanget af sikringsløsninger. "]
["header4","Spørgsmålet bliver da, hvordan du går fra at koncentrere dig om sikkerhedsproblemer til at levere forretningsresultater. Det er det, der danner hele omdrejningspunktet for G4S VærdiRadar, som vi præsenterer i denne vejledning."]
["header5","I G4S arbejder vi konstant på at udvikle sikkerhedsområdet. Gennem vores arbejde som rådgivende og teknologisk servicevirksomhed møder vi succesfulde sikkerhedsrådgivere, som har udviklet sig i takt med at deres funktion har undergået en forandringsproces. En forandringsproces, hvor virksomhedens forretningsværdi er blevet det helt centrale omdrejningspunkt."]
["header6","I G4S har vi udviklet et værktøj, som i en sikkerhedsfaglig sammenhæng adresserer denne forandringsproces og hjælper med at forstå samt vurdere det sikkerhedsmæssige bidrag til virksomheden."]
["header7","G4S’ VærdiRadar giver virksomheder mulighed for at sammenligne forskellige strategier, når der skal foretages konkrete investeringer i sikkerhed. Samtidig peger værdiradaren på den forretningsmæssige effekt af hver mulig investering."]
["Company Name","Virksomhedens Navn"]
["Company Address","Virksomhedens Adresse"]
["Assessment By","Vurdering lavet af\n"]
["Date","Dato\n"]
["Continue","Fortsæt"]
["How would you rate this subject in relation to your company?","How would you rate this subject in relation to your company?"]
["Low value","Lav værdi"]
["Medium value","Mellem værdi"]
["High value","Høj værdi"]
["Very high value","Meget høj værdi"]
["Type comments here…","Skriv kommentarer her ..."]
["Comments","Tilføj dem her, hvis du har kommentarer …"]
["Back","Tilbage"]
["Next","Næste"]
["Enter value here…","Skriv værdi her…"]
["How much additional revenue could this generate?","Hvor meget merværdi vil dette generere?"]
["How much costing could this save?","Hvor mange omkostninger vil dette kunne reducere?"]
["Please insert monitery value if you are able to estimate based on business priorities.","Indsæt økonomisk værdi ud fra dine forretningsmål"]
["No value","Ingen","værdi"]
["Continue with the assessment","Fortsæt vurderingen\n"]
["Start a new assessment","Start en ny vurdering\n"]
["How would you rate this subject in relation to your company?","Hvordan vurderer du denne værdi i forhold til din organisation?"]
["Exit","Afslut"]
["Menu","Menu"]
["Click on the ValueRadar to start the assessment.","Klik på VærdiRadar for at starte analysen."]
["If you change language, all assessment data will be reset.","Hvis du ændre sprong vil alle data blive nulstillet."]
["Your ValueRadar assessment results are below, starting with the highest values to your company  / organisation.","Din VærdiRadar vises nedenstående, startende med den højeste værdi for din organisation."]
["Based on your estimated revenue increase and cost reduction values, the total estimated cost saving for your company / organisation is:","Baseret på dine estimerede omsætningsstigning og omkostningsreduktion, er din organisations total omkostningsreduktion:"]
["Estimated Revenue Increase","Estimeret omsætningsstigning"]
["Estimated Cost Reduction","Estimeret omkostningsreduktion"]
["No values enetered…","Ingen værdi indsat…"]
["Minimal Security","Minimal Sikring F&P 10"]
["Low Security","Lav sikring F&P 20"]
["Moderate Security","Moderat sikring F&P 30"]
["Substantial Security","Betydelig sikring F&P 40"]
["High Security","Høj sikring F&P 50"]
["Extreme Security","Meget høj sikring F&P 60"]

{"sheet":"Dansk - Information","index":1,"n_rows":25,"n_cols":4,"rows_kept":25,"cut":false,"hidden":true,"merged":[[21,1,26,1],[8,1,8,16],[10,1,10,16],[12,1,12,16],[14,1,14,16],[17,1,19,1]]}
[]
[]
[]
[null,null,null,"Click here to start your ValueRadar assessment."]
[]
[]
[null,"Er din virksomhed rustet mod trusler? Gør din virksomhed til en agil, robust og kampdygtig organisation - så er du klar, hvis truslerne bliver til virkelighed."]
[null,"Det starter med Risikostyring?"]
[null,"Risikostyring hjælper dig med at identificere, evaluerere og prioritere din organisations riscisi. G4S RisikoRadar er dit værktøj til at identifcere dine nuværende trusler. Når du har gjort det, kan du vurdere, hvilke ricisi din organisation skal fokusere på."]
[null,"Har du dine interessenter med på vognen?"]
[null,"Fortæller du om riscisi på den rigtige måde, har dine interessenter forståelse for de udfordringer, i står overfor? Når først du har deres forståelse, så får du også deres tillid. Og tillid baner vejen for et bedre samarbejde om at komme riscisi til livs."]
[null,"Workbook’en kickstarter din risikostyring"]
[null,"Når du har identificeret alle trusler via denne workbook, så har du et komplet billede af trusler og riscisi i din virksomhed. Og så ved du også, hvor du skal sætte ind først og hvad og hvordan du skal fortælle dine interessenter det."]
[null,"Lidt Excel teknisk:"]
[null,"Du kan roligt acceptere de to pop-up vinduer, der dukker op i Excel, når du starter denne workbook. "]
[]
[]
[null,1,"Enable Editing - This banner will appear at the top of your screen:"]
[]
[]
[]
[null,2,"Enable Content - This banner will appear at the top of your screen:"]
[null,null,"Microsoft asks users to 'Enable Content' on workbooks that contain macros / code written in Microsoft Visual Basic (VBA).  This is to protect the user from potentially harmful script that could damage your computer."]
[null,null,"The G4S ValueRadar is powered by Microsoft Visual Basic (VBA), content must be enabled for application use."]
[null,null,"This application was written by G4S and has been approved for use."]

{"sheet":"Information","index":2,"n_rows":23,"n_cols":4,"rows_kept":23,"cut":false,"hidden":false,"merged":[[19,1,24,1],[8,1,8,16],[9,1,9,16],[11,1,11,16],[12,1,12,16],[15,1,17,1]]}
[]
[]
[]
[null,null,null,"Click here to start your SecurityRadar assessment."]
[]
[]
[null,"Looking to apply risk concepts to your business? Get ready to turn yourself (and your team) into a lean, mean risk-driven security machine."]
[null,"To Start, What Is Risk Management?"]
[null,"Risk management is the identification, evaluation, and prioritization of risks. This RiskRadar tool is meant to help you identify current risks and, ultimately, define which risks the organisation should attempt to eliminate/prevent. "]
[null,"When done correctly, risk management helps create a shared understanding with your internal stakeholders, which leads to trust. And if your colleagues trusts you, they’ll be more willing to do play a part in bringing down risks. "]
[null,"Use this workbook to kickstart your Risk Management"]
[null,"The activities in this workbook will help you fine-tune and grow your risk assessment capabilities. "]
[null,"By the way, you need to accept the two excel warnings before you can get started. "]
[]
[]
[null,1,"Enable Editing - This banner will appear at the top of your screen:"]
[]
[]
[]
[null,2,"Enable Content - This banner will appear at the top of your screen:"]
[null,null,"Microsoft asks users to 'Enable Content' on workbooks that contain macros / code written in Microsoft Visual Basic (VBA).  This is to protect the user from potentially harmful script that could damage your computer."]
[null,null,"The G4S SecurityRadar is powered by Microsoft Visual Basic (VBA), content must be enabled for application use."]
[null,null,"This application was written by G4S and has been approved for use."]

{"sheet":"Translations","index":3,"n_rows":15,"n_cols":2,"rows_kept":15,"cut":false,"hidden":true,"merged":[]}
["How would you rate this subject in relation to your company?","Hvordan vurderer du denne risiko i forhold til din organisation?"]
["Exit","Afslut"]
["Menu","Menu"]
["How much additional revenue could this generate?","Hvor meget merværdi vil dette generere?"]
["How much costing could this save?","Hvor mange omkostninger vil dette kunne reducere?"]
["Insert monitery value if you are able to estimate based on business priorities.","Indsæt økonomisk værdi ud fra dine forretningsmål"]
["Enter value here…","Skriv værdi her…"]
["Please insert number values only…","Indsæt kun talværdier…"]
["Click on the ValueRadar to start the assessment.","Klik på VærdiRadar for at starte analysen."]
["If you change language, all assessment data will be reset.","Hvis du ændre sprong vil alle data blive nulstillet."]
["Your ValueRadar assessment results are below, starting with the highest values to your company  / organisation.","Din VærdiRadar vises nedenstående, startende med den højeste værdi for din organisation."]
["Based on your estimated revenue increase and cost reduction values, the total estimated cost saving for your company / organisation is:","Baseret på dine estimerede omsætningsstigning og omkostningsreduktion, er din organisations total omkostningsreduktion:"]
["Estimated Revenue Increase","Estimeret omsætningsstigning"]
["Estimated Cost Reduction","Estimeret omkostningsreduktion"]
["No values enetered…","Ingen værdi indsat…"]

{"sheet":"RadarPlotsENG","index":4,"n_rows":0,"n_cols":0,"rows_kept":0,"cut":false,"hidden":true,"merged":[]}

{"sheet":"RadarPlotsENG2","index":5,"n_rows":0,"n_cols":0,"rows_kept":0,"cut":false,"hidden":true,"merged":[]}

{"sheet":"English Report","index":6,"n_rows":16,"n_cols":57,"rows_kept":16,"cut":false,"hidden":true,"merged":[[7,1,8,4],[8,13,8,27],[7,13,7,18],[7,6,8,11],[7,20,7,27],[7,30,8,33],[7,35,8,40],[7,42,7,47],[7,49,7,56],[8,42,8,56],[14,1,14,27],[12,1,12,27],[16,1,16,27],[12,30,12,56],[14,30,14,56],[16,30,16,56]]}
[]
[]
[]
[]
[]
[]
[]
[null,"Tactical solutions",null,null,null,null,"Manned solutions",null,null,null,null,null,null,"Mechanical security",null,null,null,null,null,null,"Electronic security",null,null,null,null,null,null,null,null,null,"Tactical solutions",null,null,null,null,"Manned solutions",null,null,null,null,null,null,"Mechanical security",null,null,null,null,null,null,"Electronic security"]
[null,null,null,null,null,null,null,null,null,null,null,null,null,"Technical solutions",null,null,null,null,null,null,null,null,null,null,null,null,null,null,null,null,null,null,null,null,null,null,null,null,null,null,null,null,"Technical solutions"]
[null,"Education","Consulting","Info","Network",null,"Patrol","Static","Special","Value","Alarm","SecOps",null,"Fence","Bollards","Doors","Locks","Safe","Active",null,"System","Fire","Tracking","Access","Video","AlarmS","Drone","Person",null,null,"PEducation","PConsulting","PInfo","PNetwork",null,"PPatrol","PStatic","PSpecial","PValue","PAlarm","PSecOps",null,"PFence","PBollards","PDoors","PLocks","PSafe","PActive",null,"PSystem","PFire","PTracking","PAccess","PVideo","PAlarmS","PDrone","PPerson"]
[null,"SecurityRadar Report (Current Set-Up)",null,null,null,null,null,null,null,null,null,null,null,null,null,null,null,null,null,null,null,null,null,null,null,null,null,null,null,null,"SecurityRadar Report (Proposed Set-Up)"]
[null,"Company Name",null,null,null,null,null,null,null,null,null,null,null,null,null,null,null,null,null,null,null,null,null,null,null,null,null,null,null,null,"Company Name"]
[]
[null,"Company Address",null,null,null,null,null,null,null,null,null,null,null,null,null,null,null,null,null,null,null,null,null,null,null,null,null,null,null,null,"Company Address"]
[]
[null,"Assessment by",null,null,null,null,null,null,null,null,null,null,null,null,null,null,null,null,null,null,null,null,null,null,null,null,null,null,null,null,"Assessment by"]

{"sheet":"Dansk Report","index":7,"n_rows":16,"n_cols":57,"rows_kept":16,"cut":false,"hidden":true,"merged":[[14,1,14,27],[14,30,14,56],[16,1,16,27],[16,30,16,56],[7,42,7,47],[7,49,7,56],[8,13,8,27],[8,42,8,56],[12,1,12,27],[12,30,12,56],[7,1,8,4],[7,6,8,11],[7,13,7,18],[7,20,7,27],[7,30,8,33],[7,35,8,40]]}
[]
[]
[]
[]
[]
[]
[]
[null,"Taktiske løsninger",null,null,null,null,"Menneskelige løsninger",null,null,null,null,null,null,"Mekanisk sikring",null,null,null,null,null,null,"Elektronisk sikring",null,null,null,null,null,null,null,null,null,"Taktiske løsninger",null,null,null,null,"Menneskelige løsninger",null,null,null,null,null,null,"Mekanisk sikring",null,null,null,null,null,null,"Elektronisk sikring"]
[null,null,null,null,null,null,null,null,null,null,null,null,null,"Tekniske løsninger",null,null,null,null,null,null,null,null,null,null,null,null,null,null,null,null,null,null,null,null,null,null,null,null,null,null,null,null,"Tekniske løsninger"]
[null,"Education","Consulting","Info","Network",null,"Patrol","Static","Special","Value","Alarm","SecOps",null,"Fence","Bollards","Doors","Locks","Safe","Active",null,"System","Fire","Tracking","Access","Video","AlarmS","Drone","Person",null,null,"PEducation","PConsulting","PInfo","PNetwork",null,"PPatrol","PStatic","PSpecial","PValue","PAlarm","PSecOps",null,"PFence","PBollards","PDoors","PLocks","PSafe","PActive",null,"PSystem","PFire","PTracking","PAccess","PVideo","PAlarmS","PDrone","PPerson"]
[null,"SikringsRadar Rapport (Aktuelle)",null,null,null,null,null,null,null,null,null,null,null,null,null,null,null,null,null,null,null,null,null,null,null,null,null,null,null,null,"SikringsRadar Rapport (Anbefalet)"]
[null,"Virksomhedens Navn",null,null,null,null,null,null,null,null,null,null,null,null,null,null,null,null,null,null,null,null,null,null,null,null,null,null,null,null,"Virksomhedens Navn"]
[]
[null,"Virksomhedens Adresse",null,null,null,null,null,null,null,null,null,null,null,null,null,null,null,null,null,null,null,null,null,null,null,null,null,null,null,null,"Virksomhedens Adresse"]
[]
[null,"Vurdering lavet af",null,null,null,null,null,null,null,null,null,null,null,null,null,null,null,null,null,null,null,null,null,null,null,null,null,null,null,null,"Vurdering lavet af"]

{"sheet":"appData","index":8,"n_rows":25,"n_cols":14,"rows_kept":25,"cut":false,"hidden":true,"merged":[]}
["Company Name",null,"Number","Header","Question","Info","Rating","Comments",null,"Marker",2,"Rating1","Comments1","Marker1"]
["Company Address",null,1,"Tactical solutions","Education ","Education results in behavioral change and awareness which helps prevent incidents. Education can be provided in areas such as information management, evacuation, asset salvage, safe behavior, travel security and more.",null,null,null,"Education",null,null,null,{"$f":"\"P\"&J2","v":"PEducation"}]
["Assessment By",null,2,"Tactical solutions","Consulting ","Consulting is targeted e.g. at special employee groups who face particular risks, but it can also be consulting in connection with the establishment of new sites, logistics and transport of goods and products. Consulting can be based on internal employees or external consultants. The most important thing is to be aware that a good security culture does not create itself.",null,null,null,"Consulting",null,null,null,{"$f":"\"P\"&J3","v":"PConsulting"}]
["Date of Assessment",null,3,"Tactical solutions","Information ","Information sharing is an important part of the overall security culture. Information can be shared at staff meetings or via the intranet, e-learnings or similar.",null,null,null,"Info",null,null,null,"PInfo"]
[null,null,4,"Tactical solutions","Network ","Networks are often confidential forums where participants exchange experiences at a high professional level and where they reinforce and develop professional relationships. These can be internal or external network groups in which participants gain knowledge and knowhow, which can be extremely valuable for your business.",null,null,null,"Network",null,null,null,"PNetwork"]
[null,null,5,"Manned solutions","Patrol Guard","A patrol guard is on patrol at a company at different times and at different time intervals, and has a preventive effect as regards burglary and theft, while  at the same time minimizing the risk, for example, of  fire and water damage.",null,null,null,"Patrol",null,null,null,"PPatrol"]
[null,null,6,"Manned solutions","Static Guard","The static guard helps to protect buildings, assets and personnel and creates a safe workplace. In the event of leaks, fire or other unforeseen incidents, the guard is there to help limit the damage. Among other things, a static guard handles reception desk and facility duties.  A static guard also performs technical monitoring, e.g. of the video surveillance system and cold room, provides first aid and contact the right people in the event of an accident.",null,null,null,"Static",null,null,null,"PStatic"]
[null,null,7,"Manned solutions","Special Guard","Special guards help out when extra security is needed, or for more complex tasks and events. Special guards  encompass many different types of guards – ranging from guards specializing in climate protection, environment and data centers to those specializing in psychiatric hospitals and residences.",null,null,null,"Special",null,null,null,"PSpecial"]
[null,null,8,"Manned solutions","Values in Transit","The values in transit are to be handled by guards with special training – especially in the case of cash, diamonds, art or special IT equipment, etc. For example, the special guards use specialized vehicles equipped with surveillance and active security when on a valuables transport.",null,null,null,"Value",null,null,null,"PValue"]
[null,null,9,"Manned solutions","Alarm Response","When the control center receives an alarm from a location, the alarm response patrol responds. The response patrol is a 24/7 emergency readiness function that is constantly on-duty and offers the shortest possible response time. An effective alarm response patrol minimizes the risk, among other things, of minor accidents developing into major disasters.",null,null,null,"Alarm",null,null,null,"PAlarm"]
[null,null,10,"Manned solutions","Security Operations Center (SOC)","The SOC monitors signals, acknowledges alarms and dispatches the nearest alarm response patrol, while also assisting with technical support. The SOC also performs remote monitoring, for example of the video surveillance system with voice alarm, so that the SOC is able to communicate with potential perpetrators or employees who need good advice.",null,null,null,"SecOps",null,null,null,"PSecOps"]
[null,null,11,"Technical solutions (Mechanical security)","Fences & Gates","Fences and gates are physical obstacles that are used primarily in the company’s perimeter (area). These safeguards impede and delay access to the company. Perimeter security often makes it difficult for unauthorized persons to get into and out of the area. Solutions include fences and gates, as well as vegetation, lighting, landscaping features (trenches, slopes, ponds); sculptures can also be part of the security solution.",null,null,null,"Fence",null,null,null,"PFence"]
[null,null,12,"Technical solutions (Mechanical security)","Bollards ","Bollards are physical obstacles that are primarily used in the company’s perimeter (area). They prevent, impede and delay access (mainly vehicular) to company premises. Solutions include bollards, booms and wedges.",null,null,null,"Bollards",null,null,null,"PBollards"]
[null,null,13,"Technical solutions (Mechanical security)","Doors, Shutters and Security Glass","This category includes general mechanical protection of building parts, including walls, roofs, doors, windows, gates, etc. on the exterior of the building or in an interior cell of the building. This solution must prevent or make it difficult to get into and out of the building or cell. Security features include, for example, locks, security doors, security windows, security bars or security glass panes as well as mechanical reinforcement of walls, façades and roofs using wooden boards, sheet metal, fiberglass sheets, etc.",null,null,null,"Doors",null,null,null,"PDoors"]
[null,null,14,"Technical solutions (Mechanical security)","Locks & Keys ","Locks and keys include the mechanical locking of doors, windows, gates and the like. The solution must prevent or make it difficult to enter and leave the building/premises without keys or similar.",null,null,null,"Locks",null,null,null,"PLocks"]
[null,null,15,"Technical solutions (Mechanical security)","Safes & Storage Units ","Safes and storage units that protect (both physically and mechanically) objects such as valuables, documents, money, IT equipment and the like. Solutions in this regard include key cabinets, fireproof safes and safe boxes, anti-theft labeling and glass displays. All of these are solutions that frustrate or impede theft, vandalism, robbery, etc.",null,null,null,"Safe",null,null,null,"PSafe"]
[null,null,16,"Technical solutions (Mechanical security)","Active Security","Systems that actively prevent incidents or decreases the value of the secured making it less attractive. Solutions include e.g. security fog, which fills the room with an opaque fog, or anti-theft dyeing of money and documents in valuables transport trunks. Another example is DNA marking, which links an object and an offender to a crime scene.",null,null,null,"Active",null,null,null,"PActive"]
[null,null,17,"Technical solutions (Electronic security)","Management Systems","A management system integrates the individual electronic security products into a single platform. Doing so yields a number of benefits, such as faster response time and automatic regulation across security systems. The management system gathers, for example, electronic access control and video surveillance into a single management platform. And when an alarm goes off, the system will make sure that the right cameras focus on the incident as the SOC simultaneously monitors it. Having a management system also makes for improved user-friendliness, a higher-level overview of the various security products, and a better overview of security throughout the company.",null,null,null,"System",null,null,null,"PSystem"]
[null,null,18,"Technical solutions (Electronic security)","Fire Protection","Fire alarm systems and fire extinguishing systems, etc. are often used in connection with legal requirements. But more and more companies are now taking measures to protect themselves against fire as a natural part of their overall security solution. When you have a professional fire protection system, your company is directly connected to the fire department. Fire alarm systems are able to monitor large areas and can detect even the most minor buildup of smoke or heat. In addition, you can combine a fire alarm system with a voice alarm so that you can quickly alert and instruct the relevant individuals in the event of a fire.",null,null,null,"Fire",null,null,null,"PFire"]
[null,null,19,"Technical solutions (Electronic security)","Tracking ","Tracking refers to products that monitor objects, vehicles and similar, primarily via GPS and GSM. These solutions cater to the wish for increased security and monitoring, and they are also able to monitor specific conditions like temperature, humidity, route, etc.",null,null,null,"Tracking",null,null,null,"PTracking"]
[null,null,20,"Technical solutions (Electronic security)","Access Control","Electronic access control refers to solutions that protect access routes and restricted areas using card readers, chip readers, biometrics, etc. Simply put, it gives you an overview and the ability to restrict access. We also use access control systems for headcounts, optimization of cleaning routines, and much more.",null,null,null,"Access",null,null,null,"PAccess"]
[null,null,21,"Technical solutions (Electronic security)","Video Monitoring ","Video monitoring refers to solutions in which we use cameras to monitor e.g. people, buildings or parking areas. Experience shows that video monitoring, when signposted, is effective at preventing unwanted incidents such as robbery, assault, theft and vandalism. Video monitoring can also be an invaluable help in terms of providing clarification and documentation when investigating incidents. Video monitoring can also create business value with video analysis. For example, heat mapping makes it possible to analyze patterns of movement.",null,null,null,"Video",null,null,null,"PVideo"]
[null,null,22,"Technical solutions (Electronic security)","Alarm Systems ","An alarm system protects a company against, for example, burglary, shrinkage, vandalism and assault. An alarm system reduces the economic impact of a break-in, and limits the impact a break-in has on daily operations. Alarm systems typically have room sensors and door/window detectors that trip a local siren and send a signal to the control center when they detect movements or other unwanted events. The siren stresses the perpetrator and attracts the attention of others nearby.",null,null,null,"AlarmS",null,null,null,"PAlarmS"]
[null,null,23,"Technical solutions (Electronic security)","Drones & Counter Drones ","Drones fly according to pre-programmed flight plans, or are remote-controlled by a drone pilot or control center. Drones are able to provide real-time footage of incidents, and can help their users quickly understand what is happening over a large geographical area. Counter drone security includes warning systems that are able to intercept and control video signals from the drone. This product area also includes robots, which we use, for example, in reception areas, parking areas and for patrol tasks.",null,null,null,"Drone",null,null,null,"PDrone"]
[null,null,24,"Technical solutions (Electronic security)","Person Tracking ","Person tracking enhances security. The product can be a small, smart device or an app on a smartphone on someone’s person. Person tracking is monitored by the control center.",null,null,null,"Person",null,null,null,"PPerson"]

{"sheet":"Menus","index":9,"n_rows":10,"n_cols":1,"rows_kept":10,"cut":false,"hidden":true,"merged":[]}
[]
["Tekniske løsninger"]
["Menneskelige løsninger"]
["Taktiske løsninger"]
[]
["Mekanisk sikring"]
["Elektronisk sikring"]
[]
["Mechanical security"]
["Electronic security"]

{"sheet":"DataSort","index":10,"n_rows":24,"n_cols":7,"rows_kept":24,"cut":false,"hidden":true,"merged":[]}
["Tactical solutions","Education ",null,null,null,"Tactical solutions","Education "]
["Tactical solutions","Consulting ",null,null,null,"Tactical solutions","Consulting "]
["Tactical solutions","Information ",null,null,null,"Tactical solutions","Information "]
["Tactical solutions","Network ",null,null,null,"Tactical solutions","Network "]
["Manned solutions","Patrol Guard",null,null,null,"Manned solutions","Patrol Guard"]
["Manned solutions","Static Guard",null,null,null,"Manned solutions","Static Guard"]
["Manned solutions","Special Guard",null,null,null,"Manned solutions","Special Guard"]
["Manned solutions","Values in Transit",null,null,null,"Manned solutions","Values in Transit"]
["Manned solutions","Alarm Response",null,null,null,"Manned solutions","Alarm Response"]
["Manned solutions","Security Operations Center (SOC)",null,null,null,"Manned solutions","Security Operations Center (SOC)"]
["Technical solutions (Mechanical security)","Fences & Gates",null,null,null,"Technical solutions (Mechanical security)","Fences & Gates"]
["Technical solutions (Mechanical security)","Bollards ",null,null,null,"Technical solutions (Mechanical security)","Bollards "]
["Technical solutions (Mechanical security)","Doors, Shutters and Security Glass",null,null,null,"Technical solutions (Mechanical security)","Doors, Shutters and Security Glass"]
["Technical solutions (Mechanical security)","Locks & Keys ",null,null,null,"Technical solutions (Mechanical security)","Locks & Keys "]
["Technical solutions (Mechanical security)","Safes & Storage Units ",null,null,null,"Technical solutions (Mechanical security)","Safes & Storage Units "]
["Technical solutions (Mechanical security)","Active Security",null,null,null,"Technical solutions (Mechanical security)","Active Security"]
["Technical solutions (Electronic security)","Management Systems",null,null,null,"Technical solutions (Electronic security)","Management Systems"]
["Technical solutions (Electronic security)","Fire Protection",null,null,null,"Technical solutions (Electronic security)","Fire Protection"]
["Technical solutions (Electronic security)","Tracking ",null,null,null,"Technical solutions (Electronic security)","Tracking "]
["Technical solutions (Electronic security)","Access Control",null,null,null,"Technical solutions (Electronic security)","Access Control"]
["Technical solutions (Electronic security)","Video Monitoring ",null,null,null,"Technical solutions (Electronic security)","Video Monitoring "]
["Technical solutions (Electronic security)","Alarm Systems ",null,null,null,"Technical solutions (Electronic security)","Alarm Systems "]
["Technical solutions (Electronic security)","Drones & Counter Drones ",null,null,null,"Technical solutions (Electronic security)","Drones & Counter Drones "]
["Technical solutions (Electronic security)","Person Tracking ",null,null,null,"Technical solutions (Electronic security)","Person Tracking "]

{"sheet":"Questions","index":11,"n_rows":49,"n_cols":3,"rows_kept":49,"cut":false,"hidden":true,"merged":[]}
["Tactical solutions","Education ","Education results in behavioral change and awareness which helps prevent incidents. Education can be provided in areas such as information management, evacuation, asset salvage, safe behavior, travel security and more."]
["Tactical solutions","Consulting ","Consulting is targeted e.g. at special employee groups who face particular risks, but it can also be consulting in connection with the establishment of new sites, logistics and transport of goods and products. Consulting can be based on internal employees or external consultants. The most important thing is to be aware that a good security culture does not create itself."]
["Tactical solutions","Information ","Information sharing is an important part of the overall security culture. Information can be shared at staff meetings or via the intranet, e-learnings or similar."]
["Tactical solutions","Network ","Networks are often confidential forums where participants exchange experiences at a high professional level and where they reinforce and develop professional relationships. These can be internal or external network groups in which participants gain knowledge and knowhow, which can be extremely valuable for your business."]
["Manned solutions","Patrol Guard","A patrol guard is on patrol at a company at different times and at different time intervals, and has a preventive effect as regards burglary and theft, while  at the same time minimizing the risk, for example, of  fire and water damage."]
["Manned solutions","Static Guard","The static guard helps to protect buildings, assets and personnel and creates a safe workplace. In the event of leaks, fire or other unforeseen incidents, the guard is there to help limit the damage. Among other things, a static guard handles reception desk and facility duties.  A static guard also performs technical monitoring, e.g. of the video surveillance system and cold room, provides first aid and contact the right people in the event of an accident."]
["Manned solutions","Special Guard","Special guards help out when extra security is needed, or for more complex tasks and events. Special guards  encompass many different types of guards – ranging from guards specializing in climate protection, environment and data centers to those specializing in psychiatric hospitals and residences."]
["Manned solutions","Values in Transit","The values in transit are to be handled by guards with special training – especially in the case of cash, diamonds, art or special IT equipment, etc. For example, the special guards use specialized vehicles equipped with surveillance and active security when on a valuables transport."]
["Manned solutions","Alarm Response","When the control center receives an alarm from a location, the alarm response patrol responds. The response patrol is a 24/7 emergency readiness function that is constantly on-duty and offers the shortest possible response time. An effective alarm response patrol minimizes the risk, among other things, of minor accidents developing into major disasters."]
["Manned solutions","Security Operations Center (SOC)","The SOC monitors signals, acknowledges alarms and dispatches the nearest alarm response patrol, while also assisting with technical support. The SOC also performs remote monitoring, for example of the video surveillance system with voice alarm, so that the SOC is able to communicate with potential perpetrators or employees who need good advice."]
["Technical solutions (Mechanical security)","Fences & Gates","Fences and gates are physical obstacles that are used primarily in the company’s perimeter (area). These safeguards impede and delay access to the company. Perimeter security often makes it difficult for unauthorized persons to get into and out of the area. Solutions include fences and gates, as well as vegetation, lighting, landscaping features (trenches, slopes, ponds); sculptures can also be part of the security solution."]
["Technical solutions (Mechanical security)","Bollards ","Bollards are physical obstacles that are primarily used in the company’s perimeter (area). They prevent, impede and delay access (mainly vehicular) to company premises. Solutions include bollards, booms and wedges."]
["Technical solutions (Mechanical security)","Doors, Shutters and Security Glass","This category includes general mechanical protection of building parts, including walls, roofs, doors, windows, gates, etc. on the exterior of the building or in an interior cell of the building. This solution must prevent or make it difficult to get into and out of the building or cell. Security features include, for example, locks, security doors, security windows, security bars or security glass panes as well as mechanical reinforcement of walls, façades and roofs using wooden boards, sheet metal, fiberglass sheets, etc."]
["Technical solutions (Mechanical security)","Locks & Keys ","Locks and keys include the mechanical locking of doors, windows, gates and the like. The solution must prevent or make it difficult to enter and leave the building/premises without keys or similar."]
["Technical solutions (Mechanical security)","Safes & Storage Units ","Safes and storage units that protect (both physically and mechanically) objects such as valuables, documents, money, IT equipment and the like. Solutions in this regard include key cabinets, fireproof safes and safe boxes, anti-theft labeling and glass displays. All of these are solutions that frustrate or impede theft, vandalism, robbery, etc."]
["Technical solutions (Mechanical security)","Active Security","Systems that actively prevent incidents or decreases the value of the secured making it less attractive. Solutions include e.g. security fog, which fills the room with an opaque fog, or anti-theft dyeing of money and documents in valuables transport trunks. Another example is DNA marking, which links an object and an offender to a crime scene."]
["Technical solutions (Electronic security)","Management Systems","A management system integrates the individual electronic security products into a single platform. Doing so yields a number of benefits, such as faster response time and automatic regulation across security systems. The management system gathers, for example, electronic access control and video surveillance into a single management platform. And when an alarm goes off, the system will make sure that the right cameras focus on the incident as the SOC simultaneously monitors it. Having a management system also makes for improved user-friendliness, a higher-level overview of the various security products, and a better overview of security throughout the company."]
["Technical solutions (Electronic security)","Fire Protection","Fire alarm systems and fire extinguishing systems, etc. are often used in connection with legal requirements. But more and more companies are now taking measures to protect themselves against fire as a natural part of their overall security solution. When you have a professional fire protection system, your company is directly connected to the fire department. Fire alarm systems are able to monitor large areas and can detect even the most minor buildup of smoke or heat. In addition, you can combine a fire alarm system with a voice alarm so that you can quickly alert and instruct the relevant individuals in the event of a fire."]
["Technical solutions (Electronic security)","Tracking ","Tracking refers to products that monitor objects, vehicles and similar, primarily via GPS and GSM. These solutions cater to the wish for increased security and monitoring, and they are also able to monitor specific conditions like temperature, humidity, route, etc."]
["Technical solutions (Electronic security)","Access Control","Electronic access control refers to solutions that protect access routes and restricted areas using card readers, chip readers, biometrics, etc. Simply put, it gives you an overview and the ability to restrict access. We also use access control systems for headcounts, optimization of cleaning routines, and much more."]
["Technical solutions (Electronic security)","Video Monitoring ","Video monitoring refers to solutions in which we use cameras to monitor e.g. people, buildings or parking areas. Experience shows that video monitoring, when signposted, is effective at preventing unwanted incidents such as robbery, assault, theft and vandalism. Video monitoring can also be an invaluable help in terms of providing clarification and documentation when investigating incidents. Video monitoring can also create business value with video analysis. For example, heat mapping makes it possible to analyze patterns of movement."]
["Technical solutions (Electronic security)","Alarm Systems ","An alarm system protects a company against, for example, burglary, shrinkage, vandalism and assault. An alarm system reduces the economic impact of a break-in, and limits the impact a break-in has on daily operations. Alarm systems typically have room sensors and door/window detectors that trip a local siren and send a signal to the control center when they detect movements or other unwanted events. The siren stresses the perpetrator and attracts the attention of others nearby."]
["Technical solutions (Electronic security)","Drones & Counter Drones ","Drones fly according to pre-programmed flight plans, or are remote-controlled by a drone pilot or control center. Drones are able to provide real-time footage of incidents, and can help their users quickly understand what is happening over a large geographical area. Counter drone security includes warning systems that are able to intercept and control video signals from the drone. This product area also includes robots, which we use, for example, in reception areas, parking areas and for patrol tasks."]
["Technical solutions (Electronic security)","Person Tracking ","Person tracking enhances security. The product can be a small, smart device or an app on a smartphone on someone’s person. Person tracking is monitored by the control center."]
[]
["Taktiske løsninger","Uddannelse ","Uddannelse resulterer i adfærdsændring og awareness, som er med til at forebygge hændelser. Uddannelsen kan være inden for områder som f.eks. informationshåndtering, evakuering, værdiredning, sikker adfærd, rejsesikkerhed."]
["Taktiske løsninger","Rådgivning ","Rådgivning er målrettet fx specielle medarbejdergrupper med særlige risici, men det kan også være rådgivning i forbindelse med etablering af nye sites, logistik og transport af varer og produkter. Rådgivning kan være baseret på interne medarbejdere eller eksterne konsulenter. Det vigtigste er at være opmærksom på, at en god sikkerhedskultur ikke bliver skabt af sig selv."]
["Taktiske løsninger","Information ","Deling af information er vigtigt for den generelle sikkerhedskultur. Information kan være personalemøder eller via intranet, e-learning og lignende."]
["Taktiske løsninger","Netværk ","Netværk er ofte fortrolige foraer, hvor deltagerne udveksler erfaringer på et højt fagligt niveau og styrker og udvikler professionelle relationer. Det kan være interne eller eksterne netværksgrupper, hvor deltager ne får viden og knowhow, som kan være ekstremt værdifuldt for ens organisation."]
["Menneskelige løsninger","Patruljevagt ","En patruljevagt patruljerer i en organisation på forskellige tidspunkter og tidsintervaller, og har en præventiv effekt mod indbrud, tyveri og samtidig minimerer risikoen for fx brand- og vandskader. "]
["Menneskelige løsninger","Fastvagt ","Fastvagten hjælper med at sikre bygninger, værdier og personale og skaber samtidigt en tryg arbejdsplads. Opstår der lækager, brand eller andre uforudsete hændelser, er vagten med til at begrænse skaderne. En fastvagt håndterer blandt andet receptions- og facility opgaver, udfører teknisk overvågning af fx tv-overvågning og kølerum, yder førstehjælp og kontakter de rette personer ved en ulykke."]
["Menneskelige løsninger","Specialvagt ","Specialvagter hjælper, når der er brug for ekstra sikkerhed eller ved mere komplekse opgaver og  events. Specialvagt dækker over mange forskellige typer vagter – lige fra vagter specialiseret i klimasikring, miljø og datacentre til psykiatriske hospitaler og bosteder."]
["Menneskelige løsninger","Værditransport ","Transport af værdier skal specialvagter med specialuddannelse håndtere – særligt når det handler om kontanter, diamanter, kunst eller særligt it-udstyr og lignende. Specialvagterne bruger fx specialiserede køretøjer udstyret med overvågning og aktiv sikring, når de udfører værditransport."]
["Menneskelige løsninger","Alarmpatrulje ","Når kontrolcentralen modtager en alarm fra en lokation, er det alarmpatruljen, der rykker ud. Det er et 24/7 beredskab, som konstant er på vagt med kortest mulig reaktionstid. En effektiv alarmpatrulje minimerer blandt andet risikoen for, at små uheld udvikler sig til større katastrofer."]
["Menneskelige løsninger","Kontrolcentral ","Kontrolcentralen overvåger signaler, bekræfter alarmer og sender nærmeste alarmpatrulje og assisterer med teknisk support. Det er også kontrolcentralen, der laver remote overvågning af fx tv-overvågning med talevars ling, så kontrolcentralen kan tale med even tuelle gerningsmænd eller kommunikere med medarbejdere, som skal have gode råd."]
["Tekniske løsninger (Mekanisk sikring)","Hegn & porte","Hegn og porte er fysiske hindringer, som primært  bliver anvendt i organisationens perimeter (område). Det vanskeliggør og forsinker adgang til organisationen.  Perimetersikring gør det ofte besværligt for uvedkommende at komme ind og ud fra området. Løsninger er fx hegn og porte, men beplantning, belysning, landskabsindretning (grøfter, skrænter, søer) og skulpturer kan også være en del af sikringsløsningen."]
["Tekniske løsninger (Mekanisk sikring)","Pullerter ","Det omfatter fysiske hindringer som primært bliver anvendt i organisationens perimeter (område). Det forhindrer, vanskeliggør og forsinker adgang for primært køretøjer til organisationen. Løsninger er fx pullerter, bomme og kiler."]
["Tekniske løsninger (Mekanisk sikring)","Døre, gitre og sikringsglas","Det omfatter generelt mekanisk sikring af bygningsdele, herunder vægge, tage, døre, vinduer, porte og lignende i den udvendige del af en bygning eller i en indvendig celle i bygningen. Løsningen skal forhindre eller gøre det vanskeligt at komme ind og ud af bygningen eller cellen. Det er fx låse, sikringsdøre, sikrings vinduer, sikringsgitre eller sikringsglas til vin duer samt mekanisk forstærkning af vægge, facader og tag med træplader, metalplader eller fiberplader og lignende."]
["Tekniske løsninger (Mekanisk sikring)","Låse og nøgler","Låse og nøgler omfatter mekanisk aflåsning af døre, vinduer, porte og lignende. Løsningen skal forhindre  eller gøre det vanskeligt at komme ind og ud uden  rette nøgle eller lignende."]
["Tekniske løsninger (Mekanisk sikring)","Værdiopbevaring ","Værdiopbevaring der, fysisk og mekanisk, sikrer objekter som værdigenstande, dokumenter, penge, it udstyr og lignende. Løsninger er fx nøgleskabe, brand- og pengeskabe, tyverimærkning og glas montrer. Det er alt sammen løsninger, der vanskelig gør eller hindrer tyveri, hærværk, røveri med mere."]
["Tekniske løsninger (Mekanisk sikring)","Aktiv Sikring","Systemer, der aktivt hindrer hændelser eller værdiforringer, det sikrede, så det er mindre attraktivt.  Det kan fx være tågesikring, der fylder et lokale med uigennemsigtig tåge eller indfarvning af penge og  dokumenter i værditransportkufferter. Et andet eksempel er DNA mærkning, der knytter en  genstand og gerningsmand til et gerningssted."]
["Tekniske løsninger (Elektronisk sikring)","Management systemer","Et management system integrerer de enkelte elektroniske sikringsprodukter på én platform. Herved opnår vi en række fordele fx en hurtigere reaktionstid og automatisk regelstyring på tværs af sikringssystemer. Et management system samler fx elektronisk adgangskontrol og video overvågning på én management platform. Og når en alarm aktiveres, vil systemet sørge for, at de rette kamera er fokuserer på hændelsen, samtidig med at kontrolcentralen overvåger hændelsen. Du opnår også  en større brugervenlighed, et større overblik over de forskellige sikringsprodukter og et bedre overblik over sikringen i hele organisationen med et management system."]
["Tekniske løsninger (Elektronisk sikring)","Brandsikring ","Brandalarmeringssystemer og brandslukningssystemer  med mere bliver ofte brugt i forbindelse med lovkrav. Flere og flere organisationer sikrer sig også mod brand, som en naturlig del af deres samlede sikkerhedsløsning. Med en professionel brandsikring er din organisation  direkte opkoblet til brandvæsenet. Brand alarmeringsanlæg kan overvåge store områder og detektere selv den mindste røg- eller varmeudvikling. Derudover kan du kombinere brandalarmeringsanlæg med talevarsling, så du hurtigt kan advare og instruere de relevante personer, hvis der opstår brand."]
["Tekniske løsninger (Elektronisk sikring)","Tracking ","Tracking er produkter, der monitorerer genstande, køretøjer og lignende via primært GPS og GSM. Løsningerne understøtter ønsket om øget sikkerhed og overvågning, og de kan også overvåge specifikke forhold som temperatur, luftfugtighed, rute etc. "]
["Tekniske løsninger (Elektronisk sikring)","Adgangskontrol ","Elektronisk adgangskontrol er løsninger, der sikrer adgangsveje og restriktive områder med kortlæsere, chiplæsere, biometri etc. Det giver overblik og mulighed for at begrænse adgang. Adgangskontrolsystemer anvender vi også til persontælling, optimering af rengøring og meget mere."]
["Tekniske løsninger (Elektronisk sikring)","TV-overvågning","TV-overvågning er løsninger, hvor vi gennem kameraer overvåger fx personer, bygninger eller parkeringsområder. Alle erfaringer viser, at TV-overvågning effektivt forebygger uønskede hændelser fx røveri, overfald, tyveri og hærværk. Også ved efterforskning af hændelser kan TV-overvågning være en uvurderlig hjælp i opklaring og dokumentation. TV-overvågning kombineret med Heat mapping gør det fx muligt at analysere bevægelsesmønstre, og derved skabe forretningsmæssige fordele som optimal opstilling af varer i en butik."]
["Tekniske løsninger (Elektronisk sikring)","Alarmsystemer ","Et alarmsystem overvåger og sikrer en organisation mod fx indbrud, svind, hærværk og overfald. Et alarmsystem reducerer de økonomiske konsekvenser ved et indbrud, og begrænser et indbruds påvirkning af den daglige drift. Alarmsystemer har typisk rumsensorer og dør/vinduesdetektorer, der sætter en lokal sirene i gang og sender signal til kontrolcentralen, når den registrerer bevægelser eller andre uønskede hændelser. Sirenen stresser og påkalder opmærksomhed fra andre mennesker i nærheden. "]
["Tekniske løsninger (Elektronisk sikring)","Droner & antidroner","Droner flyver ud fra forprogrammerede planer eller  bliver fjernstyret af en dronepilot eller kontrolcentral. Det sikrer billeder af hændelser i realtid og kan på kort tid skabe overblik over store geografiske områder. Når vi tilgengæld sikrer mod droner, kan advarselssystemer opfange og styre videosignaler fra dronen. Produktområdet dækker også over robotter, som vi anvender i fx receptioner, parkeringsområder og ved patruljeopgaver."]
["Tekniske løsninger (Elektronisk sikring)","Persontracking ","Persontracking skaber øget tryghed. Produktet kan være en lille smart enhed eller en app på en smartphone båret af en person. Persontracking overvåges af kontrolcentralen."]